fUST/lending_fUST_20260128
["ID","MTS","AMOUNT","RATE_DAILY","PERIOD"]
[403826039,1769568639491,-231.9426637,0.00013698,2]
[403826040,1769568639500,-571.95758249,0.00013698,2]
[403826041,1769568639509,-756.27,0.00013698,2]
[403826042,1769568639519,-756.27,0.00013698,2]
[403826043,1769568639528,-756.27,0.00013698,2]
[403826044,1769568639537,-756.27,0.00013698,2]
[403826045,1769568639549,-756.27,0.00013698,2]
[403826046,1769568639559,-756.27,0.00013698,2]
[403826047,1769568639567,-756.27,0.00013698,2]
[403826048,1769568639578,-756.27,0.00013698,2]
[403826049,1769568639590,-756.27,0.00013698,2]
[403826050,1769568639600,-756.27,0.00013698,2]
[403826051,1769568639610,-756.27,0.00013698,2]
[403826052,1769568639622,-756.27,0.00013698,2]
[403826053,1769568639632,-756.27,0.00013698,2]
[403826054,1769568639643,-756.27,0.00013698,2]
[403826055,1769568639652,-756.27,0.00013698,2]
[403826056,1769568639660,-756.27,0.00013698,2]
[403826057,1769568639670,-756.27,0.00013698,2]
[403826058,1769568639679,-756.27,0.00013698,2]
[403826059,1769568639689,-756.27,0.00013698,2]
[403826060,1769568639698,-756.27,0.00013698,2]
[403826061,1769568639708,-756.27,0.00013698,2]
[403826062,1769568639717,-756.27,0.00013698,2]
[403826063,1769568639727,-756.27,0.00013698,2]
[403826064,1769568639738,-756.41785257,0.00013698,2]
[403826065,1769568639750,-500.0,0.00013698,2]
[403826066,1769568639760,-500.0,0.00013698,2]
[403826067,1769568639771,-500.0,0.00013698,2]
[403826068,1769568639781,-500.0,0.00013698,2]
[403826069,1769568639790,-514.09451443,0.00013698,2]
[403826070,1769568639799,-1000.0,0.00013699,2]
[403826071,1769568639809,-500.0,0.00013699,2]
[403826072,1769568639819,-500.0,0.00013699,2]
[403826073,1769568639830,-500.0,0.00013699,2]
[403826074,1769568639840,-532.28183888,0.00013699,2]
[403826075,1769568639849,-500.0,0.00013699,2]
[403826076,1769568639858,-500.0,0.00013699,2]
[403826077,1769568639867,-500.0,0.00013699,2]
[403826078,1769568639876,-500.0,0.00013699,2]
[403826079,1769568639887,-500.0,0.00013699,2]
[403826080,1769568639896,-500.0,0.00013699,2]
[403826081,1769568639906,-506.10991888,0.00013699,2]
[403826082,1769568639915,-500.0,0.00013699,2]
[403826083,1769568639925,-500.0,0.00013699,2]
[403826084,1769568639935,-213.84661778,0.00013699,2]
[403826085,1769568639945,-500.0,0.00013699,2]
[403826086,1769568639955,-266.74859181,0.00013699,2]
[403826087,1769568639963,-500.0,0.00013699,2]
[403826088,1769568639972,-500.0,0.00013699,2]
[403826089,1769568639981,-500.0,0.00013699,2]
[403826090,1769568639992,-500.0,0.00013699,2]
[403826091,1769568640001,-501.77042598,0.00013699,2]
[403826092,1769568640011,-500.0,0.00013699,2]
[403826093,1769568640021,-500.0,0.00013699,2]
[403826094,1769568640029,-500.0,0.00013699,2]
[403826095,1769568640038,-500.0,0.00013699,2]
[403826096,1769568640048,-500.0,0.00013699,2]
[403826097,1769568640057,-500.0,0.00013699,2]
[403826098,1769568640067,-500.0,0.00013699,2]
[403826099,1769568640078,-443.49274844,0.00013699,2]
[403826100,1769568640090,-500.0,0.00013699,2]
[403826102,1769568640099,-500.0,0.00013699,2]
[403826103,1769568640108,-500.0,0.00013699,2]
[403826104,1769568640117,-500.0,0.00013699,2]
[403826105,1769568640127,-500.41621604,0.00013699,2]
[403826106,1769568640138,-500.0,0.00013699,2]
[403826107,1769568640148,-500.0,0.00013699,2]
[403826109,1769568640157,-500.0,0.00013699,2]
[403826111,1769568640166,-195.86,0.000138,2]
[403826113,1769568640175,-1000.0,0.00013821,2]
[403826115,1769568640184,-487.45856891,0.00013821,2]
[403826116,1769568640193,-1000.0,0.00013821,2]
[403826118,1769568640202,-1000.0,0.00013821,2]
[403826120,1769568640211,-1000.0,0.00013821,2]
[403826122,1769568640219,-159.88698825,0.00014002,2]
[403826124,1769568640229,-250.0,0.00014002,2]
[403826126,1769568640238,-2674.60743027,0.00014002,2]
[403826127,1769568640247,-250.0,0.00014002,2]
[403826129,1769568640256,-250.0,0.00014002,2]
[403826131,1769568640266,-250.0,0.00014002,2]
[403826133,1769568640275,-250.0,0.00014002,2]
[403826135,1769568640284,-500.0,0.00014002,2]
[403826136,1769568640293,-250.0,0.00014002,2]
[403826137,1769568640302,-500.0,0.00014002,2]
[403826138,1769568640310,-250.0,0.00014002,2]
[403826139,1769568640319,-500.0,0.00014002,2]
[403826140,1769568640328,-250.0,0.00014002,2]
[403826141,1769568640336,-500.0,0.00014002,2]
[403826142,1769568640345,-253.84782395,0.00014002,2]
[403826143,1769568640354,-500.0,0.00014002,2]
[403826144,1769568640362,-500.0,0.00014002,2]
[403826145,1769568640371,-500.0,0.00014002,2]
[403826146,1769568640380,-201.93286099,0.00014002,2]
[403826147,1769568640388,-500.0,0.00014002,2]
[403826148,1769568640398,-209.40437684,0.00014002,2]
[403826149,1769568640406,-500.0,0.00014002,2]
[403826150,1769568640415,-217.15233878,0.00014002,2]
[403826151,1769568640423,-500.0,0.00014002,2]
[403826152,1769568640432,-500.0,0.00014002,2]
[403826153,1769568640441,-225.18697532,0.00014002,2]
[403826154,1769568640450,-500.0,0.00014002,2]
[403826155,1769568640459,-233.51889341,0.00014002,2]
[403826156,1769568640467,-242.15909246,0.00014002,2]
[403826157,1769568640476,-251.11897888,0.00014002,2]
[403826158,1769568640485,-151.0,0.00014002,2]
[403826159,1769568640494,-3115.44763759,0.00014002,2]
[403826160,1769568640503,-260.4103811,0.00014002,2]
[403826161,1769568640511,-151.0,0.00014002,2]
[403826162,1769568640520,-270.0455652,0.00014002,2]
[403826163,1769568640529,-151.0,0.00014002,2]
[403826164,1769568640539,-280.03725112,0.00014002,2]
[403826165,1769568640550,-290.39862941,0.00014002,2]
[403826166,1769568640559,-202.99767962,0.00014002,2]
[403826167,1769568640567,-301.1433787,0.00014002,2]
[403826168,1769568640576,-265.37469137,0.00014002,2]
[403826169,1769568640586,-19086.45899344,0.00014006,2]
[403826170,1769568640595,-195.86,0.000142,2]
[403826171,1769568640604,-603.02799168,0.00014221,2]
[403826172,1769568640613,-500.0,0.00014247,2]
[403826173,1769568640623,-175.49146446,0.00014247,2]
[403826174,1769568640632,-501.03206151,0.00014247,2]
[403826175,1769568640641,-626.86038304,0.00014247,2]
[403826176,1769568640650,-501.07670411,0.00014247,2]
[403826177,1769568640658,-509.85507396,0.00014247,2]
[403826178,1769568640667,-502.75778254,0.00014247,2]
[403826179,1769568640675,-501.10902322,0.00014247,2]
[403826180,1769568640684,-502.14214416,0.00014247,2]
[403826181,1769568640693,-1001.37650527,0.00014247,2]
[403826182,1769568640702,-159.31465189,0.00014247,2]
[403826183,1769568640710,-501.75253763,0.00014247,2]
[403826184,1769568640719,-964.41867485,0.00014247,2]
[403826185,1769568640727,-501.48666107,0.00014247,2]
[403826186,1769568640737,-501.67094293,0.00014247,2]
[403826187,1769568640746,-508.49522103,0.00014247,2]
[403826188,1769568640754,-1002.16076125,0.00014247,2]
[403826189,1769568640763,-512.54102297,0.00014247,2]
[403826190,1769568640773,-500.38300474,0.00014247,2]
[403826191,1769568640782,-500.55398267,0.00014247,2]
[403826192,1769568640791,-505.03835844,0.00014247,2]
[403826193,1769568640799,-172.30391573,0.00014247,2]
[403826194,1769568640808,-500.0,0.00014247,2]
[403826195,1769568640817,-898.31661661,0.00014247,2]
[403826196,1769568640825,-1001.02999843,0.00014247,2]
[403826197,1769568640834,-1134.23032778,0.00014247,2]
[403826198,1769568640844,-500.68775555,0.00014247,2]
[403826199,1769568640852,-500.74029435,0.00014247,2]
[403826200,1769568640861,-1000.0,0.00014247,2]
[403826201,1769568640870,-500.97218955,0.00014247,2]
[403826202,1769568640878,-640.41251692,0.00014272,2]
[403826203,1769568640887,-304.67423267,0.00014272,2]
[403826204,1769568640896,-864.0,0.00014325,2]
[403826205,1769568640905,-1500.0,0.00014368,2]
[403826206,1769568640914,-1500.0,0.00014368,2]
[403826207,1769568640923,-1506.71511543,0.00014368,2]
[403826208,1769568640931,-1007.06964924,0.00014368,2]
[403826209,1769568640940,-195.86,0.000145,2]
[403826210,1769568640949,-2773.56790519,0.0001455,2]
[403826211,1769568640958,-501.6271235,0.00014795,2]
[403826212,1769568640967,-154.22,0.00014816,2]
[403826213,1769568640975,-195.86,0.000149,2]
[403826214,1769568640984,-1005.80206894,0.00014916,2]
[403826215,1769568640993,-904.65778398,0.00014916,2]
[403826216,1769568641001,-2876.18991768,0.00015098,2]
[403826217,1769568641010,-250.0,0.00015204,2]
[403826218,1769568641018,-195.86,0.000153,2]
[403826219,1769568641027,-444.02099849,0.00015507,2]
[403826220,1769568641035,-2982.60894464,0.00015646,2]
[403826221,1769568641044,-195.86,0.000157,2]
[403826222,1769568641053,-1000.0,0.00015757,2]
[403826223,1769568641061,-195.86,0.000161,2]
[403826224,1769568641070,-3092.96547559,0.00016194,2]
[403826225,1769568641078,-195.86,0.000164,2]
[403826226,1769568641087,-195.86,0.000168,2]
[403826227,1769568641096,-195.86,0.000172,2]
[403826228,1769568641104,-1000.0,0.00017333,2]
[403826229,1769568641113,-244.0,0.00017333,2]
[403826230,1769568641121,-630.0,0.00017378,2]
[403826231,1769568641130,-1369.0,0.00017378,2]
[403826232,1769568641139,-2150.0,0.00017378,2]
[403826233,1769568641147,-418.0,0.00017378,2]
[403826234,1769568641156,-716.0,0.00017378,2]
[403826235,1769568641164,-502.78848358,0.00017507,2]
[403826236,1769568641174,-195.86,0.000176,2]
[403826237,1769568641183,-2559.0884176,0.00017656,2]
[403826238,1769568641191,-195.86,0.00018,2]
[403826239,1769568641200,-22830.45609635,0.00018082,3]
[403826240,1769568641210,-160.0,0.0001826,2]
[403826241,1769568641218,-1041.66666667,0.0001826,2]
[403826242,1769568641228,-195.86,0.000183,2]
[403826243,1769568641237,-914.3,0.00018617,2]
[403826244,1769568641246,-500.0,0.00018618,2]
[403826245,1769568641255,-500.0,0.00018618,2]
[403826247,1769568641265,-195.86,0.000187,2]
[403826248,1769568641274,-1000.0,0.00019067,2]
[403826249,1769568641283,-492.0,0.00019067,2]
[403826251,1769568641293,-195.86,0.000191,2]
[403826252,1769568641302,-846.769,0.00019178,2]
[403826254,1769568641311,-846.769,0.00019178,2]
[403826256,1769568641320,-846.769,0.00019178,2]
[403826258,1769568641329,-1270.1535,0.00019178,2]
[403826260,1769568641338,-541.1,0.00019178,2]
[403826262,1769568641347,-4563.57,0.000192,2]
[403826264,1769568641356,-12420.22,0.000192,2]
[403826266,1769568641364,-260.27,0.000192,2]
[403826268,1769568641373,-195.86,0.000195,2]
[403826270,1769568641383,-561.55596867,0.00019507,2]
[403826272,1769568641391,-829.0,0.00019527,2]
[403826274,1769568641400,-400.0,0.00019551,2]
[403826276,1769568641410,-677.411,0.00019589,3]
[403826278,1769568641419,-677.421,0.00019589,3]
[403826280,1769568641428,-169.351,0.00019589,3]
[403826282,1769568641439,-829.0,0.00019668,2]
[403826283,1769568641448,-400.0,0.00019765,2]
[403826285,1769568641459,-779.0,0.000198,2]
[403826287,1769568641469,-829.0,0.00019804,2]
[403826290,1769568641479,-829.0,0.00019831,2]
[403826292,1769568641491,-551.0,0.00019871,2]
[403826294,1769568641501,-829.0,0.00019886,2]
[403826296,1769568641511,-421.0,0.00019898,2]
[403826297,1769568641521,-195.86,0.000199,2]
[403826299,1769568641531,-829.0,0.0001999,2]
[403826302,1769568641545,-829.0,0.00019993,2]
[403826304,1769568641558,-225.51828698,0.0002,2]
[403826306,1769568641568,-901.17107476,0.0002,2]
[403826308,1769568641578,-192.96997329,0.0002,2]
[403826310,1769568641588,-771.10801327,0.0002,2]
[403826311,1769568641597,-250.0,0.0002,10]
[403826314,1769568641607,-1868.156384,0.0002,7]
[403826316,1769568641616,-582.86327889,0.0002,2]
[403826318,1769568641627,-829.0,0.00020004,2]
[403826320,1769568641637,-400.0,0.00020039,2]
[403826322,1769568641646,-265.815143,0.00020039,7]
[403826324,1769568641657,-829.0,0.00020044,2]
[403826326,1769568641666,-366.206638,0.00020044,7]
[403826328,1769568641675,-684.206004,0.00020044,7]
[403826330,1769568641685,-829.0,0.00020046,2]
[403826332,1769568641695,-250.0,0.000201,10]
[403826334,1769568641704,-195.86,0.000202,2]
[403826336,1769568641714,-250.0,0.000202,10]
[403826338,1769568641723,-312.65253593,0.00020219,3]
[403826340,1769568641732,-829.0,0.00020256,2]
[403826342,1769568641741,-730.0,0.00020286,2]
[403826344,1769568641750,-829.0,0.00020294,2]
[403826346,1769568641759,-250.0,0.000203,10]
[403826348,1769568641768,-1828.6,0.00020309,2]
[403826349,1769568641777,-829.0,0.00020319,2]
[403826351,1769568641786,-151.0,0.00020378,2]
[403826353,1769568641797,-151.0,0.00020378,2]
[403826355,1769568641806,-151.0,0.00020378,2]
[403826357,1769568641815,-5743.440134,0.00020378,7]
[403826359,1769568641824,-151.0,0.00020378,2]
[403826361,1769568641834,-151.262815,0.00020378,2]
[403826363,1769568641842,-630.0,0.00020378,2]
[403826365,1769568641851,-1369.0,0.00020378,2]
[403826367,1769568641861,-2150.0,0.00020378,2]
[403826369,1769568641870,-418.0,0.00020378,2]
[403826371,1769568641879,-716.0,0.00020378,2]
[403826373,1769568641887,-829.0,0.00020381,2]
[403826375,1769568641898,-250.0,0.000204,10]
[403826377,1769568641908,-2000.0,0.00020457,7]
[403826379,1769568641917,-829.0,0.00020462,2]
[403826381,1769568641927,-250.0,0.000205,10]
[403826383,1769568641936,-195.86,0.000206,2]
[403826385,1769568641945,-239.9,0.000206,3]
[403826387,1769568641954,-250.0,0.000206,10]
[403826389,1769568641963,-829.0,0.00020668,2]
[403826391,1769568641972,-339.44301533,0.00020697,2]
[403826393,1769568641981,-250.0,0.000207,10]
[403826395,1769568641991,-800.0,0.00020702,2]
[403826397,1769568642000,-800.0,0.00020702,2]
[403826399,1769568642010,-730.0,0.00020716,2]
[403826401,1769568642019,-800.0,0.0002073,2]
[403826403,1769568642028,-829.0,0.00020751,2]
[403826405,1769568642038,-800.0,0.00020757,2]
[403826407,1769568642047,-208.56852707,0.00020768,2]
[403826409,1769568642056,-800.0,0.00020772,2]
[403826411,1769568642065,-400.0,0.00020787,2]
[403826413,1769568642074,-800.0,0.00020795,2]
[403826415,1769568642084,-200.38000856,0.00020798,2]
[403826417,1769568642093,-250.0,0.000208,10]
[403826419,1769568642102,-22830.4,0.000208,3]
[403826421,1769568642111,-800.0,0.00020813,2]
[403826423,1769568642120,-800.0,0.00020815,2]
[403826425,1769568642129,-800.0,0.0002083,2]
[403826427,1769568642139,-800.0,0.00020835,2]
[403826429,1769568642148,-800.0,0.00020838,2]
[403826431,1769568642157,-800.0,0.00020865,2]
[403826448,1769568642296,-800.0,0.00020874,2]
[403826450,1769568642306,-250.0,0.000209,10]
[403826452,1769568642315,-800.0,0.0002091,2]
[403826454,1769568642324,-800.0,0.00020911,2]
[403826455,1769568642335,-730.0,0.00020926,2]
[403826457,1769568642344,-800.0,0.00020938,2]
[403826459,1769568642353,-800.0,0.0002095,2]
[403826461,1769568642362,-1650.783913,0.0002096,5]
[403826463,1769568642372,-1000.0,0.00020973,2]
[403826465,1769568642381,-791.0,0.00020973,2]
[403826467,1769568642390,-1000.0,0.0002098,5]
[403826469,1769568642400,-16321.22200626,0.00021,2]
[403826471,1769568642409,-172.01,0.00021,2]
[403826473,1769568642418,-187.886199,0.00021,2]
[403826475,1769568642427,-187.886199,0.00021,2]
[403826477,1769568642436,-187.886199,0.00021,2]
[403826480,1769568642446,-187.886199,0.00021,2]
[403826481,1769568642455,-151.0,0.00021,2]
[403826483,1769568642464,-151.0,0.00021,2]
[403826485,1769568642473,-2658.151421,0.00021,7]
[403826487,1769568642482,-151.0,0.00021,2]
[403826489,1769568642492,-151.0,0.00021,2]
[403826491,1769568642501,-151.0,0.00021,2]
[403826493,1769568642511,-151.0,0.00021,2]
[403826495,1769568642520,-151.0,0.00021,2]
[403826497,1769568642530,-151.0,0.00021,2]
[403826500,1769568642539,-151.0,0.00021,2]
[403826502,1769568642558,-195.86,0.00021,2]
[403826504,1769568642568,-1000.0,0.00021,5]
[403826506,1769568642577,-250.0,0.00021,10]
[403826508,1769568642587,-3000.0,0.0002101,2]
[403826509,1769568642597,-3000.0,0.0002102,2]
[403826511,1769568642606,-3000.0,0.0002103,2]
[403826514,1769568642615,-3000.0,0.0002104,2]
[403826516,1769568642625,-3000.0,0.0002105,2]
[403826518,1769568642635,-3000.0,0.0002106,2]
[403826519,1769568642643,-829.0,0.00021068,2]
[403826521,1769568642652,-3000.0,0.0002107,2]
[403826524,1769568642662,-3000.0,0.0002108,2]
[403826526,1769568642671,-3000.0,0.0002109,2]
[403826528,1769568642681,-3000.0,0.000211,2]
[403826530,1769568642690,-4563.57,0.000211,2]
[403826532,1769568642699,-12420.22,0.000211,2]
[403826534,1769568642709,-260.27,0.000211,2]
[403826536,1769568642718,-250.0,0.000211,10]
[403826538,1769568642727,-3000.0,0.0002111,2]
[403826540,1769568642735,-829.0,0.0002111,2]
[403826541,1769568642744,-3000.0,0.0002112,2]
[403826543,1769568642753,-829.0,0.00021125,2]
[403826545,1769568642762,-3000.0,0.0002113,2]
[403826547,1769568642772,-3000.0,0.0002114,2]
[403826549,1769568642782,-3000.0,0.0002115,2]
[403826551,1769568642792,-3000.0,0.0002116,2]
[403826553,1769568642803,-3000.0,0.0002117,2]
[403826555,1769568642813,-3000.0,0.0002118,2]
[403826557,1769568642822,-3000.0,0.0002119,2]
[403826560,1769568642832,-3000.0,0.000212,2]
[403826562,1769568642842,-155.045049,0.000212,2]
[403826564,1769568642852,-151.0,0.000212,2]
[403826566,1769568642860,-152.265026,0.000212,2]
[403826568,1769568642870,-151.0,0.000212,2]
[403826569,1769568642879,-3000.0,0.0002121,2]
[403826571,1769568642889,-3000.0,0.0002122,2]
[403826573,1769568642899,-3000.0,0.0002123,2]
[403826575,1769568642908,-3000.0,0.0002124,2]
[403826577,1769568642917,-400.0,0.00021246,2]
[403826580,1769568642926,-3000.0,0.0002125,2]
[403826583,1769568642947,-3000.0,0.0002126,2]
[403826585,1769568642956,-3000.0,0.0002127,2]
[403826587,1769568642966,-829.0,0.00021277,2]
[403826589,1769568642976,-3000.0,0.0002128,2]
[403826591,1769568642986,-829.0,0.00021284,2]
[403826593,1769568642996,-3485.909266,0.0002129,2]
[403826595,1769568643006,-829.0,0.00021297,2]
[403826597,1769568643016,-153.0,0.00021322,2]
[403826599,1769568643026,-404.95,0.000214,2]
[403826601,1769568643038,-195.86,0.000214,2]
[403826604,1769568643048,-829.0,0.00021407,2]
[403826606,1769568643058,-829.0,0.00021453,2]
[403826608,1769568643068,-1041.02705725,0.000215,2]
[403826611,1769568643078,-12876.96701407,0.000215,2]
[403826613,1769568643088,-620.32345377,0.00021507,2]
[403826615,1769568643099,-533.758967,0.000216,7]
[403826618,1769568643108,-195.487429,0.00021647,7]
[403826620,1769568643118,-400.0,0.00021703,2]
[403826622,1769568643129,-514.210223,0.00021772,7]
[403826624,1769568643139,-1220.392264,0.00021772,7]
[403826626,1769568643148,-151.0,0.00021772,2]
[403826628,1769568643158,-199.884507,0.00021772,2]
[403826630,1769568643167,-151.0,0.00021772,2]
[403826632,1769568643176,-151.0,0.00021772,2]
[403826634,1769568643186,-151.0,0.00021772,2]
[403826636,1769568643195,-151.0,0.00021772,2]
[403826639,1769568643205,-400.0,0.00021787,2]
[403826641,1769568643215,-404.95,0.000218,2]
[403826643,1769568643224,-195.86,0.000218,2]
[403826645,1769568643233,-6024.829789,0.00021812,7]
[403826647,1769568643243,-187.886199,0.00021812,2]
[403826649,1769568643252,-187.886199,0.00021812,2]
[403826651,1769568643261,-187.886199,0.00021812,2]
[403826653,1769568643271,-187.886199,0.00021812,2]
[403826655,1769568643281,-151.0,0.00021812,2]
[403826657,1769568643291,-169.975527,0.00021812,2]
[403826659,1769568643301,-151.0,0.00021812,2]
[403826661,1769568643310,-2000.0,0.00021853,7]
[403826663,1769568643319,-1906.799103,0.00021918,2]
[403826665,1769568643328,-1906.799103,0.00021918,2]
[403826667,1769568643337,-1906.799103,0.00021918,2]
[403826669,1769568643347,-1906.799103,0.00021918,2]
[403826671,1769568643356,-1906.799103,0.00021918,2]
[403826673,1769568643365,-1906.799103,0.00021918,2]
[403826675,1769568643374,-1906.799103,0.00021918,2]
[403826677,1769568643384,-1906.799103,0.00021918,2]
[403826679,1769568643393,-569.95037581,0.0002196,10]
[403826681,1769568643402,-184.0,0.00022,2]
[403826683,1769568643411,-167.0,0.00022,2]
[403826685,1769568643420,-2742.9,0.00022002,2]
[403826687,1769568643429,-1640.982895,0.00022008,30]
[403826689,1769568643442,-159.79,0.000221,2]
[403826691,1769568643451,-168.25,0.000221,2]
[403826693,1769568643461,-404.95,0.000221,2]
[403826695,1769568643470,-671.64,0.000221,7]
[403826697,1769568643480,-195.86,0.000221,2]
[403826699,1769568643489,-400.0,0.00022343,2]
[403826701,1769568643499,-730.0,0.00022343,2]
[403826703,1769568643508,-400.0,0.00022427,2]
[403826705,1769568643517,-300.0,0.00022466,2]
[403826707,1769568643526,-200.0,0.00022466,2]
[403826709,1769568643535,-404.95,0.000225,2]
[403826712,1769568643546,-1034.70397552,0.000225,2]
[403826714,1769568643559,-195.86,0.000225,2]
[403826716,1769568643568,-759.471834,0.0002268,30]
[403826718,1769568643578,-386.1264929,0.00022695,2]
[403826720,1769568643589,-153.0,0.00022695,2]
[403826722,1769568643598,-153.0,0.00022695,2]
[403826724,1769568643608,-400.0,0.00022747,3]
[403826726,1769568643618,-729.0,0.00022747,3]
[403826728,1769568643629,-160.0,0.0002277,3]
[403826730,1769568643639,-404.95,0.000229,2]
[403826732,1769568643649,-4563.57,0.000229,14]
[403826734,1769568643658,-195.86,0.000229,2]
[403826736,1769568643668,-1906.799103,0.000229,2]
[403826738,1769568643677,-1906.799103,0.000229,2]
[403826740,1769568643688,-1906.799103,0.000229,2]
[403826742,1769568643697,-1906.799103,0.000229,2]
[403826744,1769568643706,-500.0,0.00022906,2]
[403826746,1769568643716,-1041.66666667,0.00023,3]
[403826748,1769568643725,-12420.22,0.00023,2]
[403826750,1769568643734,-260.27,0.00023,7]
[403826752,1769568643743,-450.0,0.00023014,2]
[403826754,1769568643752,-167.0,0.00023014,7]
[403826756,1769568643761,-250.0,0.00023014,2]
[403826758,1769568643770,-160.09522763,0.00023069,2]
[403826760,1769568643779,-1000.0,0.0002307,10]
[403826762,1769568643791,-1000.0,0.0002307,10]
[403826764,1769568643800,-26581.514208,0.0002307,30]
[403826766,1769568643809,-2000.0,0.00023249,7]
[403826768,1769568643818,-404.95,0.000233,2]
[403826770,1769568643828,-195.86,0.000233,2]
[403826772,1769568643839,-400.0,0.00023356,3]
[403826774,1769568643850,-400.0,0.00023356,3]
[403826776,1769568643859,-630.0,0.00023378,2]
[403826778,1769568643868,-418.0,0.00023378,2]
[403826780,1769568643877,-716.0,0.00023378,2]
[403826782,1769568643886,-400.0,0.0002344,3]
[403826784,1769568643895,-151.0,0.0002344,2]
[403826786,1769568643905,-151.0,0.0002344,2]
[403826789,1769568643915,-679.09093886,0.00023507,2]
[403826791,1769568643924,-600.0,0.00023562,2]
[403826793,1769568643933,-211.62923118,0.00023562,2]
[403826794,1769568643943,-20564.37934274,0.0002358,7]
[403826797,1769568643953,-3657.21,0.00023694,2]
[403826799,1769568643962,-404.95,0.000237,2]
[403826801,1769568643971,-151.0,0.000237,2]
[403826803,1769568643980,-152.349574,0.000237,2]
[403826805,1769568643990,-151.0,0.000237,2]
[403826806,1769568643999,-151.0,0.000237,2]
[403826808,1769568644008,-151.0,0.000237,2]
[403826810,1769568644017,-195.86,0.000237,2]
[403826812,1769568644026,-7008.97107798,0.000239,2]
[403826815,1769568644036,-1041.66666667,0.00024,7]
[403826817,1769568644045,-1738.25903535,0.00024,2]
[403826819,1769568644054,-31112.46710479,0.00024,7]
[403826820,1769568644064,-466.29767744,0.00024,2]
[403826822,1769568644074,-1000.0,0.00024,14]
[403826825,1769568644084,-99931.04848906,0.00024,30]
[403826827,1769568644095,-187.886199,0.00024,2]
[403826829,1769568644106,-187.886199,0.00024,2]
[403826830,1769568644116,-187.886199,0.00024,2]
[403826831,1769568644127,-187.886199,0.00024,2]
[403826832,1769568644136,-635.28692735,0.00024,3]
[403826833,1769568644146,-151.0,0.00024,2]
[403826834,1769568644155,-151.054102,0.00024,2]
[403826835,1769568644164,-151.0,0.00024,2]
[403826836,1769568644174,-151.0,0.00024,2]
[403826837,1769568644183,-151.0,0.00024,2]
[403826838,1769568644192,-221.57676,0.00024,2]
[403826839,1769568644202,-151.0,0.00024,2]
[403826840,1769568644211,-1041.66666667,0.00024,7]
[403826841,1769568644221,-1041.66666667,0.00024,3]
[403826842,1769568644230,-1906.799103,0.00024,2]
[403826843,1769568644239,-1906.799103,0.00024,2]
[403826844,1769568644248,-1906.799103,0.00024,2]
[403826845,1769568644258,-1906.799103,0.00024,2]
[403826846,1769568644267,-404.95,0.000241,2]
[403826847,1769568644276,-195.86,0.000241,2]
[403826848,1769568644286,-750.0,0.0002411,2]
[403826849,1769568644296,-160.0,0.0002411,4]
[403826850,1769568644306,-167.0,0.00024164,7]
[403826851,1769568644315,-400.0,0.0002435,3]
[403826852,1769568644325,-730.0,0.0002435,3]
[403826853,1769568644335,-404.95,0.000244,2]